fUST/lending_fUST_20250218
["ID","MTS","AMOUNT","RATE_DAILY","PERIOD"]
[353455631,1739845833419,-503.24332317,0.00013698,2]
[353455632,1739845833428,-500.0,0.00013698,2]
[353455633,1739845833438,-500.0,0.00013698,2]
[353455634,1739845833447,-502.83762885,0.00013698,2]
[353455635,1739845833458,-500.0,0.00013698,2]
[353455636,1739845833469,-502.96886447,0.00013698,2]
[353455637,1739845833479,-500.0,0.00013698,2]
[353455638,1739845833491,-500.0,0.00013698,2]
[353455639,1739845833502,-500.0,0.00013698,2]
[353455640,1739845833513,-500.0,0.00013698,2]
[353455641,1739845833523,-500.0,0.00013698,2]
[353455642,1739845833532,-500.0,0.00013698,2]
[353455643,1739845833542,-508.71249932,0.00013698,2]
[353455644,1739845833554,-500.0,0.00013698,2]
[353455645,1739845833565,-500.0,0.00013698,2]
[353455646,1739845833575,-500.0,0.00013698,2]
[353455647,1739845833585,-500.0,0.00013698,2]
[353455648,1739845833594,-500.0,0.00013698,2]
[353455649,1739845833604,-500.0,0.00013698,2]
[353455650,1739845833613,-500.0,0.00013698,2]
[353455651,1739845833623,-500.0,0.00013698,2]
[353455652,1739845833633,-507.86749704,0.00013698,2]
[353455653,1739845833643,-500.0,0.00013698,2]
[353455654,1739845833652,-501.31405631,0.00013698,2]
[353455655,1739845833662,-508.04511288,0.00013698,2]
[353455656,1739845833672,-510.15119049,0.00013698,2]
[353455657,1739845833681,-994.63,0.00013698,2]
[353455658,1739845833691,-1033.68,0.00013698,2]
[353455659,1739845833700,-500.0,0.00013698,2]
[353455660,1739845833710,-500.0,0.00013698,2]
[353455661,1739845833720,-500.0,0.00013698,2]
[353455662,1739845833731,-1023.76,0.00013698,2]
[353455663,1739845833741,-500.0,0.00013698,2]
[353455664,1739845833751,-500.0,0.00013698,2]
[353455665,1739845833761,-500.0,0.00013698,2]
[353455666,1739845833772,-500.0,0.00013698,2]
[353455667,1739845833782,-500.0,0.00013698,2]
[353455668,1739845833792,-606.96,0.00013698,2]
[353455669,1739845833802,-6703.7,0.00013698,2]
[353455670,1739845833812,-500.0,0.00013698,2]
[353455671,1739845833822,-500.0,0.00013698,2]
[353455672,1739845833833,-302.53277905,0.00013698,2]
[353455673,1739845833843,-518.37,0.00013698,2]
[353455674,1739845833853,-500.0,0.00013698,2]
[353455675,1739845833863,-500.0,0.00013698,2]
[353455676,1739845833873,-868.89,0.00013698,2]
[353455677,1739845833884,-1492.21,0.00013698,2]
[353455678,1739845833894,-500.0,0.00013698,2]
[353455679,1739845833904,-500.0,0.00013698,2]
[353455680,1739845833913,-500.0,0.00013698,2]
[353455681,1739845833923,-508.7,0.00013698,2]
[353455682,1739845833933,-574.0,0.00013698,2]
[353455683,1739845833943,-500.0,0.00013698,2]
[353455684,1739845833952,-500.0,0.00013698,2]
[353455685,1739845833962,-500.0,0.00013698,2]
[353455686,1739845833971,-500.0,0.00013698,2]
[353455687,1739845833981,-500.0,0.00013698,2]
[353455688,1739845833991,-500.0,0.00013698,2]
[353455689,1739845834001,-500.0,0.00013698,2]
[353455690,1739845834011,-500.0,0.00013698,2]
[353455691,1739845834020,-500.0,0.00013698,2]
[353455692,1739845834030,-500.0,0.00013698,2]
[353455693,1739845834040,-500.0,0.00013698,2]
[353455694,1739845834049,-363.88606655,0.00013698,2]
[353455695,1739845834063,-136.11393345,0.00013698,2]
[353455696,1739845834074,-500.0,0.00013698,2]
[353455697,1739845834085,-184.95740711,0.00013698,2]
[353455698,1739845834095,-500.0,0.00013698,2]
[353455699,1739845834106,-500.0,0.00013698,2]
[353455700,1739845834116,-175.428824,0.00013699,2]
[353455701,1739845834126,-500.0,0.00013778,2]
[353455702,1739845834136,-516.59782496,0.00013779,2]
[353455703,1739845834146,-518.46840639,0.00013779,2]
[353455704,1739845834156,-500.0,0.00013779,2]
[353455705,1739845834166,-500.0,0.0001378,2]
[353455706,1739845834176,-220.5,0.0001378,2]
[353455707,1739845834186,-316.63,0.0001378,2]
[353455708,1739845834195,-237.9,0.0001378,2]
[353455709,1739845834205,-500.0,0.0001378,2]
[353455710,1739845834214,-271.24,0.0001378,2]
[353455711,1739845834225,-242.62,0.0001378,2]
[353455712,1739845834235,-500.0,0.0001378,2]
[353455713,1739845834246,-306.96,0.0001378,2]
[353455714,1739845834257,-187.63,0.0001378,2]
[353455715,1739845834267,-994.63,0.0001378,2]
[353455716,1739845834278,-1033.68,0.0001378,2]
[353455717,1739845834287,-500.0,0.0001378,2]
[353455718,1739845834297,-1023.76,0.0001378,2]
[353455719,1739845834307,-500.0,0.0001378,2]
[353455720,1739845834317,-500.0,0.0001378,2]
[353455721,1739845834327,-500.0,0.0001378,2]
[353455722,1739845834337,-500.0,0.0001378,2]
[353455723,1739845834347,-6703.7,0.0001378,2]
[353455724,1739845834357,-500.0,0.0001378,2]
[353455725,1739845834367,-227.15,0.0001378,2]
[353455726,1739845834380,-518.37,0.0001378,2]
[353455727,1739845834390,-500.0,0.0001378,2]
[353455728,1739845834400,-500.0,0.0001378,2]
[353455729,1739845834410,-868.89,0.0001378,2]
[353455730,1739845834422,-1492.21,0.0001378,2]
[353455731,1739845834433,-500.0,0.0001378,2]
[353455732,1739845834443,-391.81,0.0001378,2]
[353455733,1739845834453,-508.7,0.0001378,2]
[353455734,1739845834465,-574.0,0.0001378,2]
[353455735,1739845834476,-500.0,0.0001378,2]
[353455736,1739845834485,-500.0,0.0001378,2]
[353455737,1739845834495,-500.0,0.0001378,2]
[353455738,1739845834505,-500.0,0.0001378,2]
[353455739,1739845834514,-500.0,0.0001378,2]
[353455740,1739845834526,-500.0,0.0001378,2]
[353455741,1739845834536,-500.0,0.0001378,2]
[353455742,1739845834546,-500.0,0.0001378,2]
[353455743,1739845834556,-441.396,0.00013802,2]
[353455744,1739845834566,-202.08214311,0.00013845,2]
[353455745,1739845834575,-449.32,0.00013862,2]
[353455746,1739845834586,-500.0,0.00013863,2]
[353455747,1739845834595,-500.0,0.00013863,2]
[353455748,1739845834606,-500.0,0.00013863,2]
[353455749,1739845834615,-994.63,0.00013863,2]
[353455750,1739845834626,-1033.68,0.00013863,2]
[353455751,1739845834635,-500.0,0.00013863,2]
[353455752,1739845834645,-1023.76,0.00013863,2]
[353455753,1739845834655,-500.0,0.00013863,2]
[353455754,1739845834665,-500.0,0.00013863,2]
[353455755,1739845834674,-500.0,0.00013863,2]
[353455756,1739845834684,-500.0,0.00013863,2]
[353455757,1739845834694,-6703.7,0.00013863,2]
[353455758,1739845834704,-500.0,0.00013863,2]
[353455759,1739845834713,-518.37,0.00013863,2]
[353455760,1739845834723,-500.0,0.00013863,2]
[353455761,1739845834732,-500.0,0.00013863,2]
[353455762,1739845834742,-868.89,0.00013863,2]
[353455763,1739845834752,-1492.21,0.00013863,2]
[353455764,1739845834761,-500.0,0.00013863,2]
[353455765,1739845834770,-508.7,0.00013863,2]
[353455766,1739845834780,-574.0,0.00013863,2]
[353455767,1739845834790,-500.0,0.00013863,2]
[353455768,1739845834799,-500.0,0.00013863,2]
[353455769,1739845834808,-500.0,0.00013863,2]
[353455770,1739845834817,-500.0,0.00013863,2]
[353455771,1739845834827,-500.0,0.00013863,2]
[353455772,1739845834836,-500.0,0.00013863,2]
[353455773,1739845834845,-500.0,0.00013863,2]
[353455774,1739845834855,-500.0,0.00013863,2]
[353455775,1739845834864,-500.0,0.00013945,2]
[353455776,1739845834873,-500.0,0.00013945,2]
[353455777,1739845834883,-500.0,0.00013945,2]
[353455778,1739845834892,-994.63,0.00013945,2]
[353455779,1739845834901,-1033.68,0.00013945,2]
[353455780,1739845834910,-500.0,0.00013945,2]
[353455781,1739845834920,-1023.76,0.00013945,2]
[353455782,1739845834929,-500.0,0.00013945,2]
[353455783,1739845834939,-500.0,0.00013945,2]
[353455784,1739845834948,-500.0,0.00013945,2]
[353455785,1739845834957,-500.0,0.00013945,2]
[353455786,1739845834966,-6703.7,0.00013945,2]
[353455787,1739845834976,-500.0,0.00013945,2]
[353455788,1739845834985,-518.37,0.00013945,2]
[353455789,1739845834994,-500.0,0.00013945,2]
[353455790,1739845835003,-500.0,0.00013945,2]
[353455791,1739845835013,-868.89,0.00013945,2]
[353455792,1739845835023,-1492.21,0.00013945,2]
[353455793,1739845835034,-500.0,0.00013945,2]
[353455794,1739845835045,-508.7,0.00013945,2]
[353455795,1739845835054,-574.0,0.00013945,2]
[353455796,1739845835064,-500.0,0.00013945,2]
[353455797,1739845835074,-500.0,0.00013945,2]
[353455798,1739845835083,-500.0,0.00013945,2]
[353455799,1739845835093,-500.0,0.00013945,2]
[353455800,1739845835103,-500.0,0.00013945,2]
[353455801,1739845835113,-500.0,0.00013945,2]
[353455802,1739845835122,-500.0,0.00013945,2]
[353455803,1739845835132,-500.0,0.00013945,2]
[353455804,1739845835141,-500.0,0.00014027,2]
[353455805,1739845835150,-500.0,0.00014027,2]
[353455806,1739845835160,-500.0,0.00014027,2]
[353455807,1739845835169,-994.63,0.00014027,2]
[353455808,1739845835178,-1033.68,0.00014027,2]
[353455809,1739845835188,-500.0,0.00014027,2]
[353455810,1739845835202,-1023.76,0.00014027,2]
[353455811,1739845835212,-500.0,0.00014027,2]
[353455812,1739845835221,-500.0,0.00014027,2]
[353455813,1739845835231,-500.0,0.00014027,2]
[353455814,1739845835242,-500.0,0.00014027,2]
[353455815,1739845835252,-6703.7,0.00014027,2]
[353455816,1739845835261,-500.0,0.00014027,2]
[353455817,1739845835270,-518.37,0.00014027,2]
[353455818,1739845835279,-500.0,0.00014027,2]
[353455819,1739845835289,-500.0,0.00014027,2]
[353455820,1739845835298,-868.89,0.00014027,2]
[353455821,1739845835308,-1492.21,0.00014027,2]
[353455822,1739845835317,-500.0,0.00014027,2]
[353455823,1739845835327,-508.7,0.00014027,2]
[353455824,1739845835337,-574.0,0.00014027,2]
[353455825,1739845835346,-500.0,0.00014027,2]
[353455826,1739845835355,-500.0,0.00014027,2]
[353455827,1739845835365,-500.0,0.00014027,2]
[353455828,1739845835375,-500.0,0.00014027,2]
[353455829,1739845835388,-500.0,0.00014027,2]
[353455830,1739845835397,-245.3625904,0.00014027,2]
[353455831,1739845835406,-500.0,0.00014027,2]
[353455832,1739845835416,-216.90431744,0.00014027,2]
[353455833,1739845835426,-215.57569549,0.00014109,2]
[353455834,1739845835436,-500.0,0.00014109,2]
[353455835,1739845835446,-500.0,0.00014109,2]
[353455836,1739845835456,-994.63,0.00014109,2]
[353455837,1739845835466,-1033.68,0.00014109,2]
[353455838,1739845835475,-500.0,0.00014109,2]
[353455839,1739845835486,-1023.76,0.00014109,2]
[353455840,1739845835496,-500.0,0.00014109,2]
[353455841,1739845835505,-500.0,0.00014109,2]
[353455842,1739845835514,-500.0,0.00014109,2]
[353455843,1739845835523,-500.0,0.00014109,2]
[353455844,1739845835532,-6703.7,0.00014109,2]
[353455845,1739845835541,-500.0,0.00014109,2]
[353455846,1739845835551,-518.37,0.00014109,2]
[353455847,1739845835559,-500.0,0.00014109,2]
[353455848,1739845835569,-500.0,0.00014109,2]
[353455849,1739845835578,-868.89,0.00014109,2]
[353455850,1739845835587,-1492.21,0.00014109,2]
[353455851,1739845835598,-500.0,0.00014109,2]
[353455852,1739845835607,-508.7,0.00014109,2]
[353455853,1739845835617,-574.0,0.00014109,2]
[353455854,1739845835627,-500.0,0.00014109,2]
[353455855,1739845835636,-500.0,0.00014109,2]
[353455856,1739845835646,-500.0,0.00014109,2]
[353455857,1739845835655,-500.0,0.00014109,2]
[353455858,1739845835664,-166.89208417,0.00014109,2]
[353455859,1739845835674,-500.0,0.00014109,2]
[353455860,1739845835684,-538.0,0.00014174,2]
[353455861,1739845835694,-1971.0,0.00014174,2]
[353455862,1739845835703,-562.836,0.00014174,2]
[353455863,1739845835713,-396.0,0.00014174,2]
[353455864,1739845835723,-500.0,0.00014191,2]
[353455865,1739845835732,-500.0,0.00014191,2]
[353455866,1739845835742,-994.63,0.00014191,2]
[353455867,1739845835763,-1033.68,0.00014191,2]
[353455868,1739845835772,-500.0,0.00014191,2]
[353455869,1739845835782,-1023.76,0.00014191,2]
[353455870,1739845835792,-500.0,0.00014191,2]
[353455871,1739845835802,-500.0,0.00014191,2]
[353455872,1739845835811,-500.0,0.00014191,2]
[353455873,1739845835821,-500.0,0.00014191,2]
[353455874,1739845835831,-6703.7,0.00014191,2]
[353455875,1739845835840,-500.0,0.00014191,2]
[353455876,1739845835850,-518.37,0.00014191,2]
[353455877,1739845835860,-500.0,0.00014191,2]
[353455878,1739845835870,-480.73873967,0.00014191,2]
[353455879,1739845835880,-868.89,0.00014191,2]
[353455880,1739845835890,-1492.21,0.00014191,2]
[353455881,1739845835899,-500.0,0.00014191,2]
[353455882,1739845835909,-508.7,0.00014191,2]
[353455883,1739845835919,-574.0,0.00014191,2]
[353455884,1739845835928,-500.0,0.00014191,2]
[353455885,1739845835938,-500.0,0.00014191,2]
[353455886,1739845835948,-464.13533022,0.00014191,2]
[353455887,1739845835957,-500.0,0.00014191,2]
[353455888,1739845835967,-500.0,0.00014191,2]
[353455889,1739845835977,-382.6771225,0.0001421,2]
[353455890,1739845835988,-500.0,0.00014273,2]
[353455891,1739845836132,-500.0,0.00014273,2]
[353455892,1739845836142,-994.63,0.00014273,2]
[353455893,1739845836152,-1033.68,0.00014273,2]
[353455894,1739845836162,-500.0,0.00014273,2]
[353455895,1739845836173,-1023.76,0.00014273,2]
[353455896,1739845836183,-500.0,0.00014273,2]
[353455897,1739845836193,-500.0,0.00014273,2]
[353455898,1739845836203,-500.0,0.00014273,2]
[353455899,1739845836213,-484.35249225,0.00014273,2]
[353455900,1739845836223,-6703.7,0.00014273,2]
[353455901,1739845836233,-500.0,0.00014273,2]
[353455902,1739845836242,-518.37,0.00014273,2]
[353455903,1739845836252,-500.0,0.00014273,2]
[353455904,1739845836262,-868.89,0.00014273,2]
[353455905,1739845836271,-1492.21,0.00014273,2]
[353455906,1739845836280,-540.39656532,0.00014273,2]
[353455907,1739845836290,-508.7,0.00014273,2]
[353455908,1739845836300,-574.0,0.00014273,2]
[353455909,1739845836309,-500.0,0.00014273,2]
[353455910,1739845836318,-500.0,0.00014273,2]
[353455911,1739845836327,-500.0,0.00014273,2]
[353455912,1739845836337,-500.0,0.00014273,2]
[353455913,1739845836347,-153.01869448,0.00014301,2]
[353455914,1739845836358,-290.54707007,0.00014356,2]
[353455915,1739845836368,-500.0,0.00014356,2]
[353455916,1739845836382,-994.63,0.00014356,2]
[353455917,1739845836392,-1033.68,0.00014356,2]
[353455918,1739845836404,-500.0,0.00014356,2]
[353455919,1739845836415,-1023.76,0.00014356,2]
[353455920,1739845836426,-500.0,0.00014356,2]
[353455921,1739845836437,-500.0,0.00014356,2]
[353455922,1739845836448,-500.0,0.00014356,2]
[353455923,1739845836463,-6703.7,0.00014356,2]
[353455924,1739845836475,-500.0,0.00014356,2]
[353455925,1739845836486,-518.37,0.00014356,2]
[353455926,1739845836498,-500.0,0.00014356,2]
[353455927,1739845836509,-868.89,0.00014356,2]
[353455928,1739845836519,-1492.21,0.00014356,2]
[353455929,1739845836529,-508.7,0.00014356,2]
[353455930,1739845836539,-574.0,0.00014356,2]
[353455931,1739845836548,-500.0,0.00014356,2]
[353455932,1739845836558,-500.0,0.00014356,2]
[353455933,1739845836568,-500.0,0.00014356,2]
[353455934,1739845836578,-500.0,0.00014356,2]
[353455935,1739845836588,-153.01869448,0.00014384,2]
[353455936,1739845836599,-500.0,0.00014438,2]
[353455937,1739845836608,-994.63,0.00014438,2]
[353455938,1739845836619,-1033.68,0.00014438,2]
[353455939,1739845836631,-500.0,0.00014438,2]
[353455940,1739845836640,-1023.76,0.00014438,2]
[353455941,1739845836650,-500.0,0.00014438,2]
[353455942,1739845836661,-499.44171601,0.00014438,2]
[353455943,1739845836671,-500.0,0.00014438,2]
[353455944,1739845836681,-6703.7,0.00014438,2]
[353455945,1739845836690,-500.0,0.00014438,2]
[353455946,1739845836700,-518.37,0.00014438,2]
[353455947,1739845836711,-500.0,0.00014438,2]
[353455948,1739845836721,-868.89,0.00014438,2]
[353455949,1739845836730,-1492.21,0.00014438,2]
[353455950,1739845836740,-508.7,0.00014438,2]
[353455951,1739845836751,-574.0,0.00014438,2]
[353455952,1739845836762,-500.0,0.00014438,2]
[353455953,1739845836772,-500.0,0.00014438,2]
[353455954,1739845836781,-500.0,0.00014438,2]
[353455955,1739845836791,-500.0,0.00014438,2]
[353455956,1739845836801,-1003.04069923,0.00014446,2]
[353455957,1739845836811,-153.01869448,0.00014466,2]
[353455958,1739845836821,-69842.57467154,0.000145,2]
[353455959,1739845836891,-46152.7213954,0.000145,2]
[353455960,1739845836903,-1336.53056753,0.000145,2]
[353455961,1739845836915,-953.7851039,0.000145,2]
[353455968,1739845838633,-150.0,0.00014174,2]
[353455969,1739845838643,-953079.89678372,0.000145,2]
[353455970,1739845838652,-236.93975696,0.0001452,2]
[353455971,1739845838662,-994.63,0.0001452,2]
[353455972,1739845838672,-1033.68,0.0001452,2]
[353455973,1739845838681,-500.0,0.0001452,2]
[353455974,1739845838690,-1023.76,0.0001452,2]
[353455975,1739845838699,-500.0,0.0001452,2]
[353455976,1739845838709,-500.0,0.0001452,2]
[353455977,1739845838718,-6703.7,0.0001452,2]
[353455978,1739845838728,-500.0,0.0001452,2]
[353455979,1739845838737,-518.37,0.0001452,2]
[353455980,1739845838747,-500.0,0.0001452,2]
[353455981,1739845838756,-868.89,0.0001452,2]
[353455982,1739845838766,-1492.21,0.0001452,2]
[353455983,1739845838775,-508.7,0.0001452,2]
[353455984,1739845838785,-574.0,0.0001452,2]
[353455985,1739845838794,-500.0,0.0001452,2]
[353455986,1739845838804,-500.0,0.0001452,2]
[353455987,1739845838814,-500.0,0.0001452,2]
[353455988,1739845838824,-585.8863961,0.0001452,2]
[353455989,1739845838833,-153.01869448,0.00014548,2]
[353455990,1739845838842,-516.0,0.0001455,2]
[353455991,1739845838851,-500.0,0.00014563,2]
[353455992,1739845838861,-994.63,0.00014602,2]
[353455993,1739845838870,-1033.68,0.00014602,2]
[353455994,1739845838880,-500.0,0.00014602,2]
[353455995,1739845838890,-1023.76,0.00014602,2]
[353455996,1739845838899,-500.0,0.00014602,2]
[353455997,1739845838908,-500.0,0.00014602,2]
[353455998,1739845838918,-6703.7,0.00014602,2]
[353455999,1739845838927,-500.0,0.00014602,2]
[353456000,1739845838936,-518.37,0.00014602,2]
[353456001,1739845838945,-500.0,0.00014602,2]
[353456002,1739845838955,-868.89,0.00014602,2]
[353456003,1739845838965,-150.32872298,0.00014602,2]
[353456004,1739845838974,-1492.21,0.00014602,2]
[353456005,1739845838984,-508.7,0.00014602,2]
[353456006,1739845838993,-574.0,0.00014602,2]
[353456007,1739845839003,-359.81724533,0.00014602,2]
[353456008,1739845839013,-247.05957699,0.00014602,2]
[353456009,1739845839022,-500.0,0.00014602,2]
[353456010,1739845839031,-20000.0,0.0001463,2]
[353456011,1739845839041,-153.01869448,0.0001463,2]
[353456012,1739845839050,-500.0,0.00014663,2]
[353456013,1739845839059,-994.63,0.00014684,2]
[353456014,1739845839068,-1033.68,0.00014684,2]
[353456015,1739845839078,-500.0,0.00014684,2]
[353456016,1739845839087,-1023.76,0.00014684,2]
[353456017,1739845839096,-500.0,0.00014684,2]
[353456018,1739845839106,-500.0,0.00014684,2]
[353456019,1739845839115,-6703.7,0.00014684,2]
[353456020,1739845839126,-500.0,0.00014684,2]
[353456021,1739845839136,-518.37,0.00014684,2]
[353456022,1739845839145,-500.0,0.00014684,2]
[353456023,1739845839155,-868.89,0.00014684,2]
[353456024,1739845839164,-1492.21,0.00014684,2]
[353456025,1739845839174,-508.7,0.00014684,2]
[353456026,1739845839183,-574.0,0.00014684,2]
[353456027,1739845839193,-500.0,0.00014684,2]
[353456028,1739845839203,-153.01869448,0.00014685,2]
[353456029,1739845839212,-168.77840813,0.00014685,2]
[353456030,1739845839221,-500.0,0.00014763,2]
[353456031,1739845839231,-994.63,0.00014767,2]
[353456032,1739845839240,-1033.68,0.00014767,2]
[353456033,1739845839249,-500.0,0.00014767,2]
[353456034,1739845839258,-1023.76,0.00014767,2]
[353456035,1739845839268,-500.0,0.00014767,2]
[353456036,1739845839277,-500.0,0.00014767,2]
[353456037,1739845839286,-6703.7,0.00014767,2]
[353456038,1739845839295,-500.0,0.00014767,2]
[353456039,1739845839304,-518.37,0.00014767,2]
[353456040,1739845839313,-500.0,0.00014767,2]
[353456041,1739845839323,-868.89,0.00014767,2]
[353456042,1739845839332,-1492.21,0.00014767,2]
[353456043,1739845839342,-508.7,0.00014767,2]
[353456044,1739845839352,-574.0,0.00014767,2]
[353456045,1739845839361,-500.0,0.00014767,2]
[353456046,1739845839370,-153.01869448,0.00014767,2]
[353456047,1739845839383,-3844.21,0.000148,2]
[353456048,1739845839392,-1146.39324066,0.000148,2]
[353456049,1739845839401,-994.63,0.00014849,2]
[353456050,1739845839410,-1033.68,0.00014849,2]
[353456051,1739845839420,-500.0,0.00014849,2]
[353456052,1739845839429,-1023.76,0.00014849,2]
[353456053,1739845839439,-500.0,0.00014849,2]
[353456054,1739845839449,-500.0,0.00014849,2]
[353456055,1739845839459,-6703.7,0.00014849,2]
[353456056,1739845839469,-383.45871963,0.00014849,2]
[353456057,1739845839478,-518.37,0.00014849,2]
[353456058,1739845839488,-428.34650039,0.00014849,2]
[353456059,1739845839497,-868.89,0.00014849,2]
[353456060,1739845839507,-1492.21,0.00014849,2]
[353456061,1739845839516,-508.7,0.00014849,2]
[353456062,1739845839526,-574.0,0.00014849,2]
[353456063,1739845839535,-500.0,0.00014849,2]
[353456064,1739845839544,-153.01869448,0.00014849,2]
[353456065,1739845839553,-500.0,0.00014863,2]
[353456066,1739845839562,-150.0,0.000149,2]
[353456067,1739845839571,-300.0,0.000149,5]
[353456068,1739845839581,-81618.6533077,0.000149,2]
[353456069,1739845839591,-13603.1088846,0.00014921,2]
[353456070,1739845839600,-191.06554011,0.00014921,2]
[353456071,1739845839609,-994.63,0.00014931,2]
[353456072,1739845839619,-1033.68,0.00014931,2]
[353456073,1739845839628,-500.0,0.00014931,2]
[353456074,1739845839638,-1023.76,0.00014931,2]
[353456075,1739845839647,-500.0,0.00014931,2]
[353456076,1739845839656,-500.0,0.00014931,2]
[353456077,1739845839665,-6703.7,0.00014931,2]
[353456078,1739845839675,-518.37,0.00014931,2]
[353456079,1739845839684,-868.89,0.00014931,2]
[353456080,1739845839693,-1492.21,0.00014931,2]
[353456081,1739845839704,-508.7,0.00014931,2]
[353456082,1739845839713,-574.0,0.00014931,2]
[353456083,1739845839722,-500.0,0.00014931,2]
[353456084,1739845839732,-153.01869448,0.00014932,2]
[353456085,1739845839743,-500.0,0.00014963,2]
[353456086,1739845839752,-153.01869448,0.00014986,2]
[353456087,1739845839762,-420.0,0.00015009,2]
[353456088,1739845839771,-994.63,0.00015013,2]
[353456089,1739845839780,-1033.68,0.00015013,2]
[353456090,1739845839790,-500.0,0.00015013,2]
[353456091,1739845839799,-1023.76,0.00015013,2]
[353456092,1739845839808,-500.0,0.00015013,2]
[353456093,1739845839817,-500.0,0.00015013,2]
[353456094,1739845839827,-6703.7,0.00015013,2]
[353456095,1739845839836,-518.37,0.00015013,2]
[353456096,1739845839845,-868.89,0.00015013,2]
[353456097,1739845839854,-1492.21,0.00015013,2]
[353456098,1739845839864,-508.7,0.00015013,2]
[353456099,1739845839873,-574.0,0.00015013,2]
[353456100,1739845839884,-500.0,0.00015013,2]
[353456101,1739845839893,-500.0,0.00015063,2]
[353456102,1739845839902,-153.01869448,0.00015068,2]
[353456103,1739845839911,-13603.1088846,0.00015085,2]
[353456104,1739845839919,-191.06554011,0.00015085,2]
[353456105,1739845839928,-994.63,0.00015095,2]
[353456106,1739845839937,-1033.68,0.00015095,2]
[353456107,1739845839947,-500.0,0.00015095,2]
[353456108,1739845839957,-1023.76,0.00015095,2]
[353456109,1739845839967,-500.0,0.00015095,2]
[353456110,1739845839976,-500.0,0.00015095,2]
[353456111,1739845839985,-6703.7,0.00015095,2]
[353456112,1739845839994,-518.37,0.00015095,2]
[353456113,1739845840004,-868.89,0.00015095,2]
[353456114,1739845840013,-1492.21,0.00015095,2]
[353456115,1739845840022,-508.7,0.00015095,2]
[353456116,1739845840032,-574.0,0.00015095,2]
[353456117,1739845840041,-500.0,0.00015095,2]
[353456118,1739845840050,-500.0,0.00015163,2]
[353456119,1739845840059,-994.63,0.00015178,2]
[353456120,1739845840068,-1033.68,0.00015178,2]
[353456121,1739845840077,-447.81211686,0.00015178,2]
[353456122,1739845840087,-1023.76,0.00015178,2]
[353456123,1739845840096,-464.54860184,0.00015178,2]
[353456124,1739845840105,-500.0,0.00015178,2]
[353456125,1739845840115,-6703.7,0.00015178,2]
[353456126,1739845840124,-518.37,0.00015178,2]
[353456127,1739845840134,-868.89,0.00015178,2]
[353456128,1739845840144,-1492.21,0.00015178,2]
[353456129,1739845840154,-508.7,0.00015178,2]
[353456130,1739845840163,-574.0,0.00015178,2]
[353456131,1739845840173,-266.03148911,0.00015178,2]
[353456132,1739845840182,-994.63,0.0001526,2]
[353456133,1739845840191,-1033.68,0.0001526,2]
[353456134,1739845840201,-1023.76,0.0001526,2]
[353456135,1739845840210,-500.0,0.0001526,2]
[353456136,1739845840219,-6703.7,0.0001526,2]